bitfinex/quotes_SOLUSD_20251009
["timestamp","ask_amount","ask_price","bid_price","bid_amount"]
[1760041094189,32.44,217.88,217.83,20.8]
[1760041094411,32.44,217.88,217.83,21.52]
[1760041094591,4.58989305,217.87,217.83,0.72]
[1760041095217,32.44,217.88,217.83,0.72]
[1760041095421,32.44,217.88,217.83,21.52]
[1760041095616,37.02980293,217.88,217.83,21.52]
[1760041095810,37.73980293,217.88,217.83,21.52]
[1760041096117,37.73980293,217.88,217.83,0.72]
[1760041097598,37.73980293,217.88,217.83,80.62]
[1760041098918,37.02980293,217.88,217.83,79.9]
[1760041099117,37.02980293,217.88,217.84,0.72]
[1760041099612,3.75934272,217.87,217.81,0.72]
[1760041099821,0.5,217.86,217.81,0.72]
[1760041099994,33.19,217.85,217.8,80.0]
[1760041100190,33.19,217.85,217.8,80.72]
[1760041100600,4.59052515,217.84,217.8,80.72]
[1760041101202,32.48,217.85,217.8,80.0]
[1760041101515,37.07042896,217.85,217.81,0.72]
[1760041102436,32.48,217.85,217.81,0.72]
[1760041102614,32.48,217.85,217.82,0.72]
[1760041102818,32.48,217.85,217.83,0.72]
[1760041102995,32.48,217.85,217.84,0.72]
[1760041103596,32.48,217.85,217.84,80.62]
[1760041103804,32.46,217.88,217.84,80.62]
[1760041105328,32.46,217.88,217.85,0.72]
[1760041105628,32.46,217.88,217.85,80.62]
[1760041106542,5.09010373,217.86,217.85,80.62]
[1760041106727,5.09010373,217.86,217.85,79.9]
[1760041106906,4.59010373,217.86,217.85,79.9]
[1760041108422,4.58989305,217.87,217.85,79.9]
[1760041109013,32.46,217.88,217.86,0.72]
[1760041109236,32.44,217.91,217.87,0.72]
[1760041109415,11.47246268,217.92,217.87,0.72]
[1760041109610,32.44,217.91,217.87,0.72]
[1760041109814,37.02905052,217.91,217.85,84.49024226]
[1760041110026,37.02905052,217.91,217.88,0.72]
[1760041111941,37.02862937,217.93,217.88,0.72]
[1760041112240,37.73862937,217.93,217.89,0.72]
[1760041113227,4.58845583,217.94,217.9,0.65]
[1760041113422,4.58845583,217.94,217.91,0.65]
[1760041113614,32.42,217.96,217.92,21.45]
[1760041113830,32.42,217.96,217.93,0.65]
[1760041114054,36.88693664,217.96,217.93,21.45]
[1760041114553,4.58800801,217.96,217.93,21.45]
[1760041115136,4.58778731,217.97,217.93,21.45]
[1760041115337,5.24778731,217.97,217.93,21.45]
[1760041115833,16.71725558,217.97,217.93,21.45]
[1760041116142,0.66,217.96,217.92,20.8]
[1760041116348,33.08,217.95,217.89,79.9]
[1760041116658,0.66,217.94,217.89,79.9]
[1760041116851,0.66,217.93,217.89,79.9]
[1760041117052,32.42,217.95,217.89,79.9]
[1760041117357,0.66,217.92,217.89,79.9]
[1760041117653,4.58841883,217.94,217.9,0.65]
[1760041117863,4.58841883,217.94,217.89,79.9]
[1760041117864,32.42,217.95,217.91,0.65]
[1760041118448,33.08,217.95,217.91,0.65]
[1760041119171,37.66831214,217.95,217.91,0.65]
[1760041119531,2.39461923,218.02,217.94,20.8]
[1760041119734,12.54847779,218.06,217.95,0.65]
[1760041119960,0.2,218.06,217.99,20.8]
[1760041120152,0.2,218.06,218.03,20.8]
[1760041120332,0.2,218.06,218.05,20.8]
[1760041120960,0.2,218.06,218.05,21.45]
[1760041122471,0.2,218.06,218.05,26.0361041]
[1760041123659,0.2,218.06,218.05,58.5161041]
[1760041125849,0.2,218.09,218.08,20.8]
[1760041126159,0.2,218.09,218.08,53.26]
[1760041126544,0.2,218.09,218.08,53.97]
[1760041126748,0.2,218.09,218.08,58.55547322]
[1760041131058,0.2,218.09,218.08,269.35547322]
[1760041133461,0.2,218.09,218.08,236.89547322]
[1760041135080,0.2,218.09,218.08,231.6]
[1760041136284,0.2,218.09,218.08,236.18547322]
[1760041141093,0.2,218.09,218.08,25.38547322]
[1760041141392,0.2,218.09,218.06,0.71]
[1760041141572,4.58337152,218.18,218.09,79.7]
[1760041141770,0.68,218.17,218.09,210.6]
[1760041142083,0.68,218.16,218.09,210.6]
[1760041142281,0.68,218.15,218.09,210.6]
[1760041142480,0.68,218.14,218.09,210.6]
[1760041142684,0.68,218.13,218.09,210.6]
[1760041143391,43.33647521,218.21,218.09,210.6]
[1760041143392,5.30274139,218.21,218.12,20.8]
[1760041143692,5.30274139,218.21,218.16,20.8]
[1760041143868,4.58274139,218.21,218.16,20.8]
[1760041144069,0.72,218.2,218.16,20.8]
[1760041144265,4.58274139,218.21,218.16,21.47]
[1760041144496,0.72,218.23,218.19,20.8]
[1760041144670,0.72,218.23,218.2,20.8]
[1760041144980,0.72,218.22,218.2,20.8]
[1760041145375,0.72,218.21,218.2,20.8]
[1760041145581,0.72,218.21,218.17,79.7]
[1760041145787,0.72,218.2,218.17,79.7]
[1760041145976,0.72,218.19,218.17,79.7]
[1760041146190,0.72,218.18,218.17,79.7]
[1760041146374,0.72,218.18,218.15,20.8]
[1760041146696,0.72,218.17,218.15,20.8]
[1760041146898,16.03749507,218.24,218.15,20.8]
[1760041147116,5.30379171,218.16,218.15,20.8]
[1760041147299,4.58379171,218.16,218.15,20.8]
[1760041148194,4.58358161,218.17,218.15,20.8]
[1760041148575,0.72,218.16,218.13,79.7]
[1760041148770,0.72,218.15,218.12,20.8]
[1760041148979,0.72,218.14,218.12,20.8]
[1760041149197,16.04253563,218.17,218.12,20.8]
[1760041149496,0.72,218.13,218.12,100.5]
[1760041149702,0.72,218.13,218.12,79.7]
[1760041150493,5.30442213,218.13,218.12,79.7]
[1760041151493,22.91478669,218.2,218.12,79.7]
[1760041151494,0.72,218.16,218.12,79.7]
[1760041151698,4.58398749,218.16,218.13,0.67]
[1760041153203,16.04218872,218.18,218.13,0.67]
[1760041153385,0.72,218.17,218.13,0.67]
[1760041154087,0.72,218.17,218.13,79.7]
[1760041154286,4.58379171,218.16,218.13,79.7]
[1760041155793,0.72,218.15,218.13,79.7]
[1760041156376,4.5140365,218.23,218.16,20.8]
[1760041156569,0.2,218.25,218.19,20.8]
[1760041156775,0.2,218.25,218.2,0.67]
[1760041157198,5.50190714,218.25,218.2,0.67]
[1760041157381,4.78190714,218.25,218.19,20.8]
[1760041157583,4.78190714,218.25,218.19,26.05308517]
[1760041157982,4.78190714,218.25,218.19,25.38308517]
[1760041158190,4.78190714,218.25,218.2,0.67]
[1760041159403,4.78190714,218.25,218.21,0.67]
[1760041159696,4.78190714,218.25,218.21,80.37]
[1760041162674,0.72,218.24,218.21,79.7]
[1760041162902,0.72,218.23,218.19,79.7]
[1760041163097,0.72,218.22,218.15,80.37]
[1760041163405,3.76221486,218.21,218.15,80.37]
[1760041163582,0.72,218.21,218.15,80.37]
[1760041164003,3.04221486,218.21,218.15,79.7]
[1760041164209,3.04221486,218.2,218.16,0.67]
[1760041164498,3.04221486,218.19,218.17,0.67]
[1760041164704,4.58298814,218.2,218.17,0.67]
[1760041164888,3.04221486,218.19,218.17,0.67]
[1760041165095,3.04221486,218.19,218.15,80.37]
[1760041165275,3.04221486,218.19,218.16,0.67]
[1760041167304,4.58298814,218.2,218.16,0.67]
[1760041167482,4.58298814,218.2,218.15,79.7]
[1760041167483,3.04221486,218.2,218.15,84.28400078]
[1760041167685,3.76221486,218.19,218.15,79.7]
[1760041167991,32.4,218.22,218.13,79.7]
[1760041167992,3.76221486,218.18,218.13,79.7]
[1760041168188,0.72,218.17,218.13,79.7]
[1760041168507,0.72,218.16,218.13,79.7]
[1760041168883,0.72,218.16,218.11,0.67]
[1760041169086,4.58400183,218.15,218.11,0.67]
[1760041169381,35.44221486,218.18,218.12,0.67]
[1760041169590,3.04221486,218.17,218.12,0.67]
[1760041170398,3.04221486,218.18,218.1,39.38158731]
[1760041170615,7.62560178,218.18,218.13,0.67]
[1760041170804,7.62560178,218.18,218.14,0.67]
[1760041171190,3.04221486,218.18,218.14,0.67]
[1760041171489,3.04221486,218.18,218.15,0.67]
[1760041172211,3.04221486,218.18,218.12,4.58461946]
[1760041172212,5.30342967,218.18,218.13,20.8]
[1760041172510,5.30342967,218.18,218.13,0.67]
[1760041172906,0.69,218.17,218.1,13.99666467]
[1760041173097,0.69,218.16,218.09,100.5]
[1760041173284,0.69,218.16,218.09,101.15]
[1760041174211,4.58400183,218.15,218.09,119.58127571]
[1760041174794,4.58400183,218.15,218.09,114.99601396]
[1760041175400,4.58400183,218.15,218.09,119.58127291]
[1760041175708,4.58400183,218.15,218.09,114.99601396]
[1760041175917,0.69,218.14,218.09,114.99601396]
[1760041176208,5.27437151,218.14,218.09,114.34601396]
[1760041176407,4.58437151,218.14,218.1,0.65]
[1760041177535,3.7940365,218.24,218.17,20.8]
[1760041177702,0.69,218.23,218.16,0.65]
[1760041177905,3.75354445,218.23,218.14,0.65]
[1760041178317,16.03885986,218.22,218.14,0.65]
[1760041178518,3.75354445,218.21,218.14,0.65]
[1760041178928,3.75354445,218.21,218.13,101.1]
[1760041179219,3.75354445,218.21,218.13,105.68440046]
[1760041179416,36.27354445,218.21,218.13,106.33440046]
[1760041179599,3.06354445,218.2,218.13,106.33440046]
[1760041180422,4.58316146,218.19,218.13,106.33440046]
[1760041180715,4.58316146,218.19,218.13,26.03440046]
[1760041180906,4.58316146,218.19,218.14,0.65]
[1760041181100,4.58316146,218.19,218.15,0.65]
[1760041181332,4.58295142,218.2,218.15,0.65]
[1760041181540,5.27295142,218.2,218.15,0.65]
[1760041182340,0.69,218.19,218.13,26.03440046]
[1760041182528,5.27334825,218.19,218.13,106.33440046]
[1760041183324,4.58334825,218.19,218.13,106.33440046]
[1760041183526,4.58334825,218.19,218.14,0.65]
[1760041183728,4.58334825,218.19,218.15,0.65]
[1760041186131,4.58295142,218.2,218.15,0.65]
[1760041186338,8.35649587,218.2,218.15,0.65]
[1760041186652,14.67051171,218.18,218.06,0.66]
[1760041186830,3.77354445,218.17,218.06,0.66]
[1760041187038,3.06354445,218.16,218.06,0.66]
[1760041187223,35.54354445,218.15,218.06,14.03912384]
[1760041187536,3.77354445,218.14,218.07,0.66]
[1760041187744,32.48,218.14,218.07,0.66]
[1760041187915,3.0646003,218.13,218.07,0.66]
[1760041188116,4.58463231,218.12,218.07,21.46]
[1760041188415,4.58463231,218.12,218.08,0.66]
[1760041190237,3.0646003,218.13,218.07,25.3855984]
[1760041190437,3.0646003,218.13,218.08,0.66]
[1760041190738,3.7746003,218.13,218.08,0.66]
[1760041191128,8.35902866,218.13,218.08,0.66]
[1760041191527,3.0646003,218.15,218.09,0.66]
[1760041191741,4.58358161,218.17,218.11,20.8]
[1760041192035,3.0646003,218.17,218.12,0.66]
[1760041192249,3.0646003,218.19,218.13,0.66]
[1760041192737,4.58313614,218.2,218.13,80.96]
[1760041192914,7.64773644,218.2,218.13,80.3]
[1760041193118,0.71,218.19,218.13,80.3]
[1760041193319,0.71,218.18,218.13,80.3]
[1760041193519,0.71,218.17,218.13,80.3]
[1760041193937,0.71,218.16,218.13,80.3]
[1760041194131,0.71,218.15,218.12,20.8]
[1760041194333,0.71,218.15,218.09,5.24524308]
[1760041195515,5.29414743,218.15,218.09,5.24524308]
[1760041195921,4.58414743,218.15,218.09,5.24524308]
[1760041196122,4.58414743,218.15,218.09,85.54524308]
[1760041197838,4.58379171,218.16,218.09,85.54524308]
[1760041198041,4.58379171,218.16,218.09,84.88524308]
[1760041198250,4.58379171,218.16,218.1,0.66]
[1760041198844,4.58379171,218.16,218.1,5.24503189]
[1760041200262,4.58379171,218.16,218.1,0.66]
[1760041200434,0.71,218.15,218.09,80.3]
[1760041200627,3.77377954,218.15,218.09,80.3]
[1760041200952,4.58421197,218.14,218.09,80.3]
[1760041201133,3.06377954,218.15,218.12,20.8]
[1760041201338,3.06617206,218.21,218.14,20.8]
[1760041201546,3.06617206,218.21,218.14,101.1]
[1760041201749,3.06617206,218.21,218.15,0.66]
[1760041202043,4.5823214,218.23,218.15,0.66]
[1760041202231,0.71,218.22,218.15,211.2]
[1760041202434,3.77617206,218.21,218.15,211.2]
[1760041202640,3.77617206,218.2,218.12,101.1]
[1760041202854,36.23617206,218.19,218.12,101.1]
[1760041203032,4.58358161,218.17,218.12,101.82]
[1760041203231,0.71,218.16,218.12,101.1]
[1760041204261,4.58358161,218.17,218.12,101.1]
[1760041204262,4.58358161,218.17,218.12,101.82]
[1760041204430,0.71,218.16,218.12,101.82]
[1760041205341,7.65343883,218.17,218.12,101.82]
[1760041205655,5.29358161,218.17,218.12,101.82]
[1760041207246,0.71,218.16,218.12,80.3]
[1760041207447,3.77985722,218.16,218.1,0.72]
[1760041207639,3.06985722,218.16,218.11,0.72]
[1760041207847,37.02342496,218.18,218.11,0.72]
[1760041207848,3.06985722,218.17,218.11,0.72]
[1760041208045,3.06985722,218.17,218.12,0.72]
[1760041208349,7.65343978,218.17,218.13,0.72]
[1760041208553,7.65343978,218.17,218.14,0.72]
[1760041209160,3.06985722,218.17,218.15,0.72]
[1760041209352,35.52985722,218.21,218.16,0.72]
[1760041209550,3.77985722,218.2,218.16,0.72]
[1760041210061,0.71,218.2,218.16,0.72]
[1760041210363,7.65298677,218.2,218.17,0.72]
[1760041210534,4.58312955,218.2,218.17,81.02]
[1760041210736,7.65298677,218.2,218.17,81.02]
[1760041210961,7.65263121,218.21,218.17,80.3]
[1760041211258,3.06985722,218.2,218.18,0.72]
[1760041212172,7.65263121,218.21,218.18,0.72]
[1760041212374,7.65263121,218.21,218.17,80.3]
[1760041212557,0.71,218.2,218.17,80.3]
[1760041212895,3.77985722,218.19,218.14,80.3]
[1760041213181,3.77985722,218.18,218.14,80.3]
[1760041213382,3.77985722,218.17,218.14,80.3]
[1760041213558,3.06985722,218.16,218.14,80.3]
[1760041214281,32.44,218.17,218.15,0.72]
[1760041214459,3.06985722,218.16,218.14,80.3]
[1760041214776,3.06985722,218.16,218.14,81.02]
[1760041215560,3.06985722,218.16,218.14,80.3]
[1760041215766,3.06985722,218.16,218.15,0.72]
[1760041216164,3.06985722,218.16,218.14,80.3]
[1760041216165,4.58339427,218.18,218.14,80.3]
[1760041216478,7.65325149,218.18,218.14,81.02]
[1760041216674,0.71,218.17,218.14,80.3]
[1760041216847,4.58339427,218.18,218.14,80.3]
[1760041216848,3.77985722,218.16,218.14,80.3]
[1760041217053,3.77985722,218.15,218.14,80.3]
[1760041217253,0.71,218.15,218.1,81.02]
[1760041217771,3.77985722,218.15,218.11,0.72]
[1760041217974,3.77985722,218.17,218.1,84.88500807]
[1760041218176,3.06985722,218.16,218.1,85.60500807]
[1760041218380,4.58400183,218.15,218.1,85.60500807]
[1760041218571,4.58400183,218.15,218.11,0.72]
[1760041220659,3.06985722,218.16,218.12,0.72]
[1760041220859,3.06985722,218.16,218.13,0.72]
[1760041221380,4.58358161,218.17,218.13,0.72]
[1760041221576,8.36343883,218.17,218.11,5.30480529]
[1760041221880,5.29358161,218.17,218.11,5.30480529]
[1760041222067,8.36343883,218.17,218.11,5.30480529]
[1760041222381,8.36343883,218.17,218.11,85.60480529]
[1760041223480,8.36343883,218.17,218.11,81.02]
[1760041223784,3.06985722,218.16,218.11,81.02]
[1760041223964,3.06985722,218.16,218.12,0.72]
[1760041224280,3.77985722,218.15,218.11,80.3]
[1760041224455,8.36406919,218.14,218.11,80.3]
[1760041224656,5.29421197,218.14,218.11,80.3]
[1760041225053,33.11,218.13,218.08,80.3]
[1760041225375,3.77985722,218.12,218.08,80.3]
[1760041225576,3.77985722,218.12,218.06,14.36033146]
[1760041225577,3.06985722,218.12,218.09,0.72]
[1760041225881,35.46985722,218.14,218.07,5.3056651]
[1760041226057,3.06985722,218.13,218.07,0.72]
[1760041226259,3.77985722,218.13,218.06,13.64033146]
[1760041226459,4.58463231,218.12,218.05,26.10608186]
[1760041226659,4.58463231,218.12,218.06,20.8]
[1760041227266,3.83732153,218.21,218.1,20.8]
[1760041227466,3.07259515,218.2,218.11,0.72]
[1760041227672,3.07259515,218.19,218.11,0.72]
[1760041228370,7.65557219,218.2,218.11,0.72]
[1760041228576,7.65557219,218.2,218.14,20.8]
[1760041230675,7.65557219,218.2,218.14,0.72]
[1760041231175,7.65557219,218.2,218.14,81.02]
[1760041232084,7.65557219,218.2,218.15,0.72]
[1760041232265,7.65557219,218.2,218.16,0.72]
[1760041232590,8.36557219,218.2,218.15,80.3]
[1760041232789,5.29297704,218.2,218.15,80.96]
[1760041232963,7.65557219,218.2,218.16,0.66]
[1760041233164,4.58297704,218.2,218.16,0.66]
[1760041233370,7.65557219,218.2,218.16,0.66]
[1760041233571,3.07259515,218.21,218.17,0.66]
[1760041233787,3.07259515,218.22,218.17,0.66]
[1760041234067,3.07259515,218.22,218.17,5.24340605]
[1760041234277,3.07259515,218.23,218.18,0.66]
[1760041234776,3.07259515,218.23,218.19,0.66]
[1760041235090,3.07259515,218.23,218.2,0.66]
[1760041235284,3.07259515,218.23,218.2,80.96]
[1760041236293,3.07259515,218.23,218.2,80.3]
[1760041236498,3.07259515,218.23,218.21,0.66]
[1760041236807,3.07259515,218.23,218.2,84.88294641]
[1760041236979,0.2,218.25,218.23,20.8]
[1760041237175,0.2,218.25,218.23,101.1]
[1760041237389,0.2,218.25,218.24,0.66]
[1760041237704,0.2,218.25,218.24,80.96]
[1760041238407,0.2,218.25,218.24,85.54211143]
[1760041240276,0.2,218.25,218.24,117.96211143]
[1760041241094,0.2,218.25,218.24,128.83858664]
[1760041242487,0.2,218.25,218.24,85.54211143]
[1760041242814,0.2,218.25,218.24,117.94211143]
[1760041243185,0.2,218.25,218.24,37.64211143]
[1760041244702,0.2,218.25,218.24,32.4]
[1760041244883,0.2,218.25,218.24,0.66]
[1760041246504,0.2,218.25,218.24,5.24211143]
[1760041249006,0.2,218.28,218.27,80.1]
[1760041249204,0.2,218.28,218.27,84.68148165]
[1760041253105,0.9,218.28,218.27,80.1]
[1760041254707,0.2,218.28,218.27,80.1]
[1760041258724,0.2,218.28,218.27,84.68148165]
[1760041259217,0.2,218.28,218.27,80.1]
[1760041260316,0.2,218.28,218.27,117.75148165]
[1760041260819,0.2,218.28,218.27,121.47461069]
[1760041262020,0.2,218.28,218.27,113.17]
[1760041263323,0.2,218.28,218.27,117.75148165]
[1760041264418,0.2,218.28,218.27,117.06148165]
[1760041264796,0.88,218.28,218.27,80.1]
[1760041265919,5.46127176,218.28,218.26,80.1]
[1760041266110,0.68,218.27,218.26,80.1]
[1760041266703,0.2,218.28,218.26,80.1]
[1760041266922,0.68,218.27,218.26,80.1]
[1760041267804,0.68,218.27,218.24,100.9]
[1760041268016,0.68,218.26,218.24,100.9]
[1760041268310,0.68,218.25,218.24,100.9]
[1760041268827,0.2,218.28,218.24,106.18209382]
[1760041269002,0.2,218.28,218.25,0.7]
[1760041269198,0.2,218.28,218.25,33.08]
[1760041269520,0.2,218.28,218.26,0.7]
[1760041270320,0.2,218.28,218.25,32.38]
[1760041270828,0.2,218.28,218.26,4.58169156]
[1760041272741,0.2,218.28,218.26,85.38169156]
[1760041273538,0.2,218.28,218.26,215.58169156]
[1760041273844,0.2,218.31,218.3,20.8]
[1760041274136,0.2,218.31,218.3,53.18]
[1760041274325,0.2,218.31,218.3,53.88]
[1760041274732,0.2,218.31,218.3,133.78]
[1760041274930,0.2,218.31,218.3,138.36085203]
[1760041276848,0.2,218.31,218.3,152.01766632]
[1760041278739,0.68,218.36,218.32,84.28028986]
[1760041279129,0.68,218.35,218.32,84.28028986]
[1760041279332,0.2,218.38,218.35,20.8]
[1760041279653,0.2,218.38,218.35,53.18]
[1760041279947,0.2,218.38,218.35,53.88]
[1760041280751,0.2,218.38,218.35,138.15960001]
[1760041282247,0.2,218.38,218.36,0.7]
[1760041282545,0.2,218.38,218.37,33.06]
[1760041282752,0.2,218.38,218.37,163.96]
[1760041282934,0.2,218.38,218.37,168.53938361]
[1760041284346,0.89,218.38,218.37,130.9]
[1760041286050,5.46917391,218.38,218.37,79.7]
[1760041292749,16.9171087,218.38,218.26,0.66]
[1760041292960,3.06906658,218.37,218.27,32.36]
[1760041293153,0.72,218.36,218.27,33.02]
[1760041293353,0.72,218.35,218.27,33.02]
[1760041293555,0.72,218.34,218.27,33.02]
[1760041294165,4.58022259,218.33,218.27,37.60131029]
[1760041297067,11.44918083,218.36,218.28,0.66]
[1760041297264,4.57938361,218.37,218.29,32.36]
[1760041297454,4.57938361,218.37,218.32,20.8]
[1760041297852,4.57938361,218.37,218.33,0.66]
[1760041298254,5.29938361,218.37,218.33,0.66]
[1760041299567,4.57938361,218.37,218.33,0.66]
[1760041299957,4.57938361,218.37,218.34,0.66]
[1760041300145,4.57938361,218.37,218.32,21.46]
[1760041300346,5.29938361,218.37,218.33,0.66]
[1760041301444,4.57938361,218.37,218.33,0.66]
[1760041301648,4.57938361,218.37,218.32,20.8]
[1760041301961,4.77926094,218.38,218.33,0.66]
[1760041302164,5.49926094,218.38,218.33,0.66]
[1760041302470,5.49926094,218.38,218.34,0.66]
[1760041303068,4.77926094,218.38,218.33,79.7]
[1760041303260,5.49926094,218.38,218.34,0.66]
[1760041305273,5.49926094,218.38,218.35,0.66]
[1760041305274,0.2,218.38,218.35,0.66]
[1760041305859,0.2,218.38,218.37,20.8]
[1760041306055,0.2,218.38,218.37,101.16]
[1760041306672,0.2,218.38,218.37,105.73938361]
[1760041307068,0.2,218.38,218.37,100.5]
[1760041307451,0.2,218.38,218.37,101.16]
[1760041307848,0.2,218.38,218.37,100.5]
[1760041308954,5.49917391,218.38,218.35,79.7]
[1760041309255,0.92,218.38,218.35,79.7]
[1760041314883,0.2,218.38,218.35,79.7]
[1760041315090,0.72,218.37,218.35,79.7]
[1760041315383,0.72,218.36,218.35,79.7]
[1760041315953,0.72,218.36,218.31,80.36]
[1760041316166,0.72,218.35,218.29,0.66]
[1760041317160,4.58001282,218.34,218.29,0.66]
[1760041317379,4.58001282,218.34,218.3,0.66]
[1760041317580,0.72,218.33,218.28,25.38124174]
[1760041317780,0.72,218.32,218.26,13.43815136]
[1760041317969,0.72,218.31,218.24,4.58001282]
[1760041318157,0.72,218.3,218.24,20.8]
[1760041318688,0.72,218.29,218.21,36.92273325]
[1760041318870,0.72,218.28,218.21,58.38273325]
[1760041319057,0.72,218.28,218.21,26.04273325]
[1760041319255,4.58148165,218.27,218.21,26.04273325]
[1760041320266,4.58148165,218.27,218.22,0.66]
[1760041320468,4.58128691,218.28,218.23,0.66]
[1760041320688,0.72,218.27,218.23,0.66]
[1760041321568,4.57959333,218.36,218.27,20.8]
[1760041321769,4.57959333,218.36,218.28,0.66]
[1760041322976,4.57959333,218.36,218.29,4.58106189]
[1760041323176,4.57959333,218.36,218.3,0.7]
[1760041326168,4.57959333,218.36,218.3,80.4]
[1760041327788,5.23959333,218.36,218.3,80.4]
[1760041329388,3.07384765,218.37,218.3,84.28077565]
[1760041329568,0.2,218.38,218.33,20.8]
[1760041329767,5.43923647,218.38,218.34,0.7]
[1760041330163,0.2,218.38,218.35,0.7]
[1760041330369,0.2,218.38,218.36,0.7]
[1760041330590,0.2,218.38,218.37,0.7]
[1760041331288,0.2,218.38,218.37,80.4]
[1760041331890,0.2,218.38,218.37,84.97938361]
[1760041334798,0.2,218.38,218.37,80.4]
[1760041335103,0.2,218.38,218.37,79.7]
[1760041335472,0.2,218.38,218.37,80.4]
[1760041336293,0.2,218.38,218.37,84.97938361]
[1760041337867,0.2,218.38,218.37,86.81227017]
[1760041338677,0.2,218.38,218.37,117.31938361]
[1760041340605,0.2,218.38,218.37,119.15235416]
[1760041340989,0.2,218.42,218.37,119.15235416]
[1760041340990,0.2,218.42,218.39,79.5]
[1760041341315,0.2,218.42,218.41,20.8]
[1760041344000,0.86,218.42,218.41,20.8]
[1760041344701,0.2,218.42,218.41,20.8]
[1760041345981,0.2,218.42,218.41,25.37854493]
[1760041346176,0.2,218.42,218.41,26.07854493]
[1760041346473,0.2,218.42,218.41,20.8]
[1760041346979,0.2,218.42,218.41,100.3]
[1760041349796,0.2,218.42,218.41,104.87854493]
[1760041351010,0.2,218.43,218.42,79.3]
[1760041351208,0.2,218.43,218.42,84.57833531]
[1760041353787,0.2,218.43,218.42,79.3]
[1760041354186,0.2,218.43,218.42,83.87833531]
[1760041354814,0.2,218.43,218.42,79.3]
[1760041354996,0.92,218.43,218.42,79.3]
[1760041357199,0.2,218.43,218.42,79.3]
[1760041358198,0.92,218.43,218.42,79.3]
[1760041359714,0.2,218.43,218.42,79.3]
[1760041360104,0.92,218.43,218.42,79.3]
[1760041360920,5.49812571,218.43,218.42,79.3]
[1760041363513,0.92,218.43,218.42,79.3]
[1760041364439,5.49812571,218.43,218.42,79.3]
[1760041364807,0.92,218.43,218.42,79.3]
[1760041366725,0.2,218.43,218.42,80.01]
[1760041367114,0.2,218.43,218.42,79.3]
[1760041371737,4.77812571,218.43,218.42,79.3]
[1760041374129,5.46812571,218.43,218.42,79.3]
[1760041374333,8.54034981,218.43,218.42,79.3]
[1760041374645,0.89,218.43,218.42,79.3]
[1760041374846,3.9622241,218.43,218.42,79.3]
[1760041375345,3.2722241,218.43,218.42,79.3]
[1760041376846,7.85034981,218.43,218.42,79.3]
[1760041379341,8.54034981,218.43,218.42,79.3]
[1760041383629,3.9622241,218.43,218.42,79.3]
[1760041383938,7.85034981,218.43,218.42,79.3]
[1760041384326,8.53034981,218.43,218.42,79.3]
[1760041385045,5.45812571,218.43,218.42,79.3]
[1760041385642,8.53859615,218.43,218.42,79.3]
[1760041386150,5.45812571,218.43,218.42,79.3]